bitfinex-derivatives/quotes_SOLF0:USTF0_20250819
["timestamp","ask_amount","ask_price","bid_price","bid_amount"]
[1755572048338,3.89615603,182.88,182.77,3.61895894]
[1755572048538,6.85615603,182.87,182.83,0.03983542]
[1755572048847,2.96,182.85,182.83,0.03983542]
[1755572049143,2.96,182.84,182.83,0.03983542]
[1755572051750,2.96,182.84,182.74,3.90895894]
[1755572051950,2.96,182.82,182.74,3.90895894]
[1755572052847,2.96,182.82,182.74,9.37845894]
[1755572053046,0.03848942,182.8,182.74,9.37845894]
[1755572055555,0.03848942,182.8,182.74,3.90895894]
[1755572055744,2.99848942,182.8,182.74,3.90895894]
[1755572056557,2.99848942,182.8,182.71,3.90895894]
[1755572057159,2.96,182.8,182.71,3.90895894]
[1755572057352,2.99919303,182.77,182.71,3.90895894]
[1755572058858,2.99919303,182.77,182.67,0.29]
[1755572059347,2.96,182.75,182.67,0.29]
[1755572059547,0.03823987,182.74,182.67,0.29]
[1755572062356,0.03823987,182.74,182.67,5.7618]
[1755572062550,0.03823987,182.74,182.62,503.4]
[1755572062551,0.03823987,182.74,182.69,3.61895894]
[1755572062754,2.90823987,182.74,182.71,0.31]
[1755572062957,2.87,182.74,182.71,0.31]
[1755572063359,2.90778004,182.74,182.71,0.31]
[1755572063961,0.03778004,182.74,182.69,3.61895894]
[1755572064162,2.87,182.72,182.66,9.40085894]
[1755572064558,2.87,182.78,182.68,0.31]
[1755572064760,3.88667805,182.77,182.68,0.31]
[1755572064961,0.03837515,182.71,182.68,0.31]
[1755572065156,0.03837515,182.71,182.69,0.31]
[1755572065356,2.87,182.76,182.7,0.31]
[1755572065763,0.03812548,182.72,182.68,0.31]
[1755572066060,0.03812548,182.72,182.69,0.31]
[1755572066462,0.03812548,182.72,182.68,0.31]
[1755572066862,2.90812548,182.72,182.68,0.31]
[1755572067255,0.03812548,182.72,182.67,0.31]
[1755572067454,0.03812548,182.72,182.68,0.31]
[1755572067658,0.03812548,182.72,182.69,0.31]
[1755572068162,2.90812548,182.72,182.66,3.61895894]
[1755572068959,2.90812548,182.72,182.66,3.92895894]
[1755572069160,2.90812548,182.72,182.66,9.40075894]
[1755572069361,2.90812548,182.72,182.66,3.92895894]
[1755572071467,2.90812548,182.72,182.55,10.9506]
[1755572071468,2.90812548,182.72,182.63,3.92895894]
[1755572071872,2.87,182.72,182.63,3.92895894]
[1755572072271,0.03545713,182.69,182.63,3.92895894]
[1755572072471,0.03545713,182.69,182.66,3.61895894]
[1755572072672,0.03545713,182.69,182.68,0.31]
[1755572073973,0.03545713,182.69,182.66,3.61895894]
[1755572074171,0.03545713,182.69,182.66,3.92895894]
[1755572074473,0.03545713,182.69,182.67,0.31]
[1755572075172,0.03545713,182.69,182.68,0.31]
[1755572075573,2.87,182.77,182.68,0.31]
[1755572075779,2.87,182.77,182.7,3.61895894]
[1755572075965,2.87,182.77,182.71,0.31]
[1755572076166,2.87,182.77,182.71,5.7805]
[1755572076366,2.87,182.77,182.6,3.61895894]
[1755572076367,2.87,182.77,182.73,3.92895894]
[1755572076567,2.87,182.8,182.74,0.31]
[1755572077972,2.87,182.8,182.73,3.61895894]
[1755572080368,2.87,182.8,182.7,3.61895894]
[1755572080568,2.87,182.78,182.67,0.31]
[1755572080776,3.87957623,182.77,182.67,0.31]
[1755572080976,2.87,182.75,182.67,0.31]
[1755572081871,2.87,182.75,182.66,3.61895894]
[1755572082173,2.87,182.75,182.67,0.31]
[1755572083384,2.87,182.75,182.66,3.61895894]
[1755572083570,2.87,182.75,182.67,0.31]
[1755572084181,2.87,182.79,182.67,0.31]
[1755572084368,3.87999972,182.78,182.67,0.31]
[1755572084571,3.87999972,182.77,182.67,0.31]
[1755572084771,2.87,182.79,182.67,0.31]
[1755572084772,3.87999972,182.76,182.67,0.31]
[1755572085074,2.87,182.79,182.67,0.31]
[1755572085276,3.88008606,182.78,182.68,5.4714]
[1755572085478,3.88008606,182.77,182.68,5.4714]
[1755572085673,3.88008606,182.76,182.67,0.31]
[1755572085975,2.87,182.76,182.67,0.31]
[1755572087882,2.87,182.74,182.63,3.92895894]
[1755572088181,2.87,182.74,182.63,9.40165894]
[1755572088678,2.87,182.74,182.64,5.4726]
[1755572090382,3.88681849,182.73,182.64,5.4726]
[1755572090681,2.87,182.74,182.64,5.4726]
[1755572090877,3.88681806,182.73,182.64,5.4726]
[1755572091078,2.87,182.74,182.64,5.4726]
[1755572091278,3.88681806,182.73,182.64,5.4726]
[1755572091582,2.87,182.74,182.64,5.4726]
[1755572091783,3.88813775,182.73,182.64,5.4726]
[1755572092083,3.88813775,182.73,182.6,135.68]
[1755572092084,2.87,182.74,182.66,3.92895894]
[1755572092282,3.88810053,182.73,182.66,3.92895894]
[1755572092478,2.87,182.74,182.66,9.40085894]
[1755572092683,3.88965907,182.73,182.66,9.40085894]
[1755572092885,2.87,182.74,182.66,9.40085894]
[1755572093079,3.88965907,182.73,182.66,9.40085894]
[1755572093280,2.87,182.74,182.67,5.4717]
[1755572093484,2.87,182.74,182.68,0.29]
[1755572094684,2.91,182.72,182.64,0.29]
[1755572094883,2.91,182.72,182.64,5.7625]
[1755572095486,2.91,182.72,182.66,3.90895894]
[1755572097489,2.91,182.72,182.66,9.38075894]
[1755572098991,2.91,182.72,182.66,3.90895894]
[1755572100895,3.89959478,182.71,182.66,3.90895894]
[1755572101185,2.91,182.69,182.66,3.61895894]
[1755572101379,2.91,182.76,182.66,3.90895894]
[1755572101581,2.91,182.74,182.66,3.90895894]
[1755572101780,3.9009825,182.73,182.66,3.90895894]
[1755572101984,6.81072305,182.72,182.66,3.90895894]
[1755572102184,6.81072305,182.71,182.66,3.90895894]
[1755572102393,2.91,182.71,182.66,3.90895894]
[1755572102693,2.91,182.69,182.66,3.61895894]
[1755572103085,2.91,182.72,182.66,3.90895894]
[1755572103288,6.8114927,182.71,182.67,0.29]
[1755572103486,3.9014927,182.7,182.67,0.29]
[1755572105188,2.91,182.69,182.66,3.61895894]
[1755572105388,3.61895894,182.72,182.63,0.29]
[1755572105594,2.91,182.7,182.63,0.29]
[1755572105888,2.91,182.7,182.57,135.64]
[1755572105889,2.91,182.68,182.57,3.90895894]
[1755572106093,2.91,182.66,182.57,3.90895894]
[1755572106293,2.91,182.64,182.57,3.90895894]
[1755572106497,2.91,182.64,182.57,0.29]
[1755572108793,2.91,182.64,182.54,126.4396778]
[1755572108996,3.89179644,182.63,182.54,130.05863674]
[1755572109201,6.80179644,182.62,182.54,124.58303674]
[1755572109501,2.91,182.62,182.54,124.58303674]
[1755572110397,2.91,182.62,182.54,130.05843674]
[1755572110598,2.91,182.62,182.54,124.58303674]
[1755572112192,2.91,182.62,182.49,506.99895894]
[1755572112193,2.91,182.62,182.5,0.29]
[1755572112394,141.73416637,182.68,182.49,3.61895894]
[1755572112395,2.91,182.6,182.49,3.61895894]
[1755572112599,2.91,182.58,182.47,0.29]
[1755572112901,2.91,182.56,182.47,0.29]
[1755572113497,2.91,182.56,182.48,5.4774]
[1755572113800,2.91,182.56,182.46,3.90895894]
[1755572114001,2.91,182.56,182.47,9.09645894]
[1755572118302,2.91,182.56,182.48,5.4774]
[1755572118596,2.91,182.56,182.44,135.66]
[1755572118597,2.91,182.56,182.5,3.61895894]
[1755572119208,2.91,182.56,182.5,9.09555894]
[1755572120306,2.91,182.56,182.51,5.7665]
[1755572120504,2.91,182.55,182.51,0.29]
[1755572121105,2.91,182.59,182.52,0.29]
[1755572121309,2.91,182.59,182.5,3.61895894]
[1755572122202,2.91,182.59,182.51,0.29]
[1755572122404,2.91,182.59,182.53,3.61895894]
[1755572125615,6.53895894,182.64,182.53,3.92895894]
[1755572125907,2.92,182.62,182.53,3.92895894]
[1755572126113,2.92,182.62,182.56,3.92895894]
[1755572127213,2.92,182.67,182.57,0.31]
[1755572127404,3.8990562,182.66,182.57,0.31]
[1755572127608,2.92,182.65,182.57,0.31]
[1755572130516,2.92,182.65,182.57,5.7847]
[1755572133021,2.92,182.58,182.47,3.61895894]
[1755572133221,2.92,182.58,182.48,0.31]
[1755572133521,2.92,182.58,182.5,5.4768]
[1755572133820,2.92,182.58,182.48,0.31]
[1755572136314,3.90357891,182.57,182.48,0.31]
[1755572136520,2.92,182.58,182.48,0.31]
[1755572137321,2.92,182.55,182.44,3.92895894]
[1755572137623,3.61895894,182.56,182.44,0.31]
[1755572137624,2.92,182.53,182.44,0.31]
[1755572137820,2.92,182.52,182.41,3.92895894]
[1755572138016,2.92,182.51,182.41,3.92895894]
[1755572138922,7.52194284,182.5,182.38,127.63154849]
[1755572139120,2.92,182.51,182.4,0.31]
[1755572139314,2.92,182.49,182.4,5.7898]
[1755572139819,2.92,182.49,182.41,5.4795]
[1755572140119,2.92,182.49,182.42,0.31]
[1755572140424,2.92,182.49,182.42,5.7892]
[1755572142925,2.92,182.49,182.42,0.31]
[1755572143527,2.92,182.49,182.42,5.7892]
[1755572143728,2.92,182.49,182.42,0.31]
[1755572144029,2.92,182.49,182.39,5.4799]
[1755572144623,2.92,182.49,182.4,5.4798]
[1755572145235,2.92,182.49,182.41,5.7895]
[1755572145632,2.92,182.49,182.43,5.4788]
[1755572145927,2.92,182.52,182.44,0.31]
[1755572146130,2.92,182.52,182.44,5.7884]
[1755572147032,2.92,182.52,182.46,5.4781]
[1755572147226,2.92,182.52,182.44,3.92895894]
[1755572147934,2.92,182.52,182.46,0.03734587]
[1755572148327,3.9029043,182.51,182.46,0.03734587]
[1755572148635,2.92,182.52,182.46,0.03734587]
[1755572149434,3.90503009,182.51,182.47,0.31]
[1755572149732,2.92,182.51,182.46,0.03734587]
[1755572150027,2.92,182.57,182.47,3.92895894]
[1755572150229,3.90530709,182.56,182.47,3.92895894]
[1755572150433,6.82530709,182.55,182.47,3.92895894]
[1755572150639,3.90530709,182.54,182.47,9.40665894]
[1755572150830,3.90530709,182.54,182.47,3.92895894]
[1755572151335,3.90530709,182.54,182.48,9.09635894]
[1755572152629,3.90530709,182.54,182.48,3.61895894]
[1755572153133,3.1,182.52,182.45,3.61895894]
[1755572153339,3.90957259,182.51,182.45,3.61895894]
[1755572153525,3.1,182.52,182.45,3.61895894]
[1755572153729,3.90940588,182.51,182.45,3.61895894]
[1755572154030,3.1,182.52,182.45,3.92895894]
[1755572154222,3.1,182.52,182.46,5.4778]
[1755572154427,3.61895894,182.58,182.48,3.61895894]
[1755572154629,3.1,182.56,182.49,0.31]
[1755572154830,3.91217269,182.55,182.49,0.31]
[1755572155034,3.1,182.56,182.48,3.61895894]
[1755572155035,3.91217269,182.54,182.5,0.31]
[1755572155232,3.1,182.56,182.5,0.31]
[1755572155535,3.1,182.54,182.5,0.31]
[1755572157036,368.02,182.59,182.48,3.61895894]
[1755572157235,3.1,182.51,182.45,3.92895894]
[1755572160132,3.1,182.51,182.45,9.40705894]
[1755572160542,6.71895894,182.57,182.45,3.92895894]
[1755572160733,3.91249881,182.56,182.48,3.92895894]
[1755572160936,3.91249881,182.55,182.48,3.92895894]
[1755572161136,3.91249881,182.54,182.48,3.92895894]
[1755572161337,3.1,182.57,182.48,3.92895894]
[1755572161537,3.1,182.55,182.48,3.92895894]
[1755572161744,368.02,182.59,182.38,123.10495206]
[1755572161745,3.1,182.53,182.45,3.61895894]
[1755572161936,3.91186731,182.52,182.45,3.61895894]
[1755572162136,3.1,182.53,182.45,3.61895894]
[1755572162647,3.91320025,182.52,182.45,3.61895894]
[1755572162838,3.1,182.53,182.45,3.61895894]
[1755572163345,3.1,182.5,182.4,0.31]
[1755572163641,3.1,182.48,182.4,5.7897]
[1755572165240,3.1,182.51,182.44,3.61895894]
[1755572165538,3.1,182.51,182.44,3.92895894]
[1755572166647,3.1,182.51,182.44,0.31]
[1755572166855,3.1,182.51,182.41,3.92895894]
[1755572167145,3.91179023,182.5,182.41,3.92895894]
[1755572167341,3.1,182.51,182.41,3.92895894]
[1755572167537,3.91167089,182.5,182.41,3.92895894]
[1755572167741,3.1,182.51,182.42,0.31]
[1755572167950,3.91167089,182.5,182.42,0.31]
[1755572168247,3.1,182.49,182.42,0.31]
[1755572168645,3.1,182.49,182.43,5.4788]
[1755572171952,3.1,182.54,182.44,5.7885]
[1755572172139,3.1,182.52,182.44,0.31]
[1755572172343,3.1,182.5,182.41,3.61895894]
[1755572172944,3.1,182.54,182.45,0.31]
[1755572173151,3.1,182.52,182.45,0.31]
[1755572173355,3.91503631,182.51,182.45,0.31]
[1755572174145,3.91503631,182.51,182.44,9.09735894]
[1755572174853,3.91503631,182.51,182.44,3.61895894]
[1755572175053,7.01503631,182.5,182.44,3.61895894]
[1755572175252,3.92004669,182.49,182.44,3.61895894]
[1755572175447,3.1,182.48,182.44,3.61895894]
[1755572175754,3.1,182.48,182.44,3.92895894]
[1755572179343,3.1,182.54,182.44,3.61895894]
[1755572179543,3.1,182.52,182.44,3.61895894]
[1755572179747,3.1,182.5,182.43,0.31]
[1755572179949,3.1,182.48,182.41,3.61895894]
[1755572180151,3.91518627,182.47,182.41,3.61895894]
[1755572180455,3.1,182.48,182.41,9.09835894]
[1755572180654,3.91517581,182.47,182.41,9.09835894]
[1755572180856,3.1,182.48,182.41,9.09835894]
[1755572181045,3.91517977,182.47,182.41,9.09835894]
[1755572181250,3.1,182.48,182.41,9.09835894]
[1755572181449,3.91599506,182.47,182.41,9.09835894]
[1755572181649,3.1,182.48,182.41,9.09835894]
[1755572181855,3.91632402,182.47,182.41,9.09835894]
[1755572182055,3.1,182.48,182.41,9.09835894]
[1755572182255,3.91654754,182.47,182.41,3.61895894]
[1755572182456,3.1,182.48,182.41,3.61895894]
[1755572182657,3.91723005,182.47,182.41,3.61895894]
[1755572182855,2.9,182.45,182.41,3.92895894]
[1755572183858,2.9,182.49,182.42,0.31]
[1755572184060,3.91679888,182.48,182.42,0.31]
[1755572184358,2.9,182.53,182.49,5.4771]
[1755572184554,3.91888351,182.52,182.47,3.61895894]
[1755572184751,3.91888351,182.51,182.48,0.31]
[1755572184946,3.91883437,182.5,182.47,3.61895894]
[1755572185152,6.07416637,182.56,182.47,3.61895894]
[1755572185153,3.91883437,182.49,182.47,3.92895894]
[1755572185346,2.9,182.52,182.47,3.92895894]
[1755572185347,2.9,182.52,182.47,3.61895894]
[1755572185550,3.91765424,182.51,182.48,0.31]
[1755572185754,3.91765424,182.5,182.49,0.31]
[1755572186257,3.91765424,182.5,182.47,3.92895894]
[1755572186458,2.9,182.55,182.47,3.92895894]
[1755572186658,8.32662004,182.54,182.47,3.92895894]
[1755572186860,3.91689422,182.53,182.47,3.92895894]
[1755572187158,6.07416637,182.56,182.47,3.92895894]
[1755572187159,6.81689422,182.52,182.47,3.92895894]
[1755572187460,3.91689422,182.51,182.47,3.92895894]
[1755572187661,3.91689422,182.5,182.47,3.92895894]
[1755572187955,6.07416637,182.57,182.47,3.92895894]
[1755572188257,2.9,182.51,182.47,3.92895894]
[1755572188456,3.91560298,182.5,182.47,3.92895894]
[1755572189158,3.91560298,182.5,182.47,9.09665894]
[1755572189359,2.9,182.54,182.48,0.31]
[1755572189553,3.91471622,182.53,182.48,0.31]
[1755572189759,3.91471622,182.52,182.48,5.7875]
[1755572189958,3.91471622,182.51,182.48,0.31]
[1755572190160,3.91471622,182.5,182.48,0.31]
[1755572190460,6.07416637,182.56,182.47,3.61895894]
[1755572190461,2.9,182.55,182.47,3.61895894]
[1755572190757,2.9,182.53,182.47,3.61895894]
[1755572190957,2.9,182.51,182.47,3.61895894]
[1755572191255,3.9153461,182.5,182.47,3.61895894]
[1755572191461,6.8153461,182.5,182.47,3.61895894]
[1755572191659,2.9,182.5,182.47,3.61895894]
[1755572192159,2.9,182.53,182.47,9.40665894]
[1755572192359,6.81581697,182.52,182.47,9.40665894]
[1755572192563,6.81581697,182.51,182.47,3.92895894]
[1755572192760,6.81581697,182.5,182.47,3.61895894]
[1755572192954,2.9,182.5,182.47,3.92895894]
[1755572193156,2.9,182.53,182.47,3.92895894]
[1755572193356,6.07416637,182.56,182.47,3.92895894]
[1755572193357,2.9,182.51,182.47,3.92895894]
[1755572193647,3.91600051,182.5,182.47,3.92895894]
[1755572193851,3.91482059,182.49,182.47,3.61895894]
[1755572194055,2.9,182.55,182.47,3.61895894]
[1755572194255,2.9,182.53,182.47,3.61895894]
[1755572194461,2.9,182.51,182.47,3.61895894]
[1755572194656,6.81481343,182.5,182.47,3.61895894]
[1755572194857,3.91481343,182.49,182.47,3.61895894]
[1755572195061,2.9,182.5,182.47,3.92895894]
[1755572195262,3.91447463,182.49,182.47,3.92895894]
[1755572195449,2.9,182.5,182.47,3.92895894]
[1755572195653,3.91468821,182.49,182.47,3.92895894]
[1755572195863,2.9,182.5,182.47,3.92895894]
[1755572196055,3.91452373,182.49,182.47,3.92895894]
[1755572196251,2.9,182.5,182.47,3.92895894]
[1755572196450,3.91385095,182.49,182.47,3.92895894]
[1755572196657,2.9,182.5,182.47,3.92895894]
[1755572196857,3.91331641,182.49,182.47,3.92895894]
[1755572197063,6.07416637,182.56,182.47,3.92895894]
[1755572197262,2.9,182.54,182.47,3.61895894]
[1755572197464,3.91348267,182.53,182.47,3.61895894]
[1755572197659,3.91348267,182.52,182.47,3.61895894]
[1755572197858,3.91348267,182.51,182.48,0.31]
[1755572198060,3.91348267,182.5,182.47,3.61895894]
[1755572198260,2.9,182.5,182.47,3.61895894]
[1755572198462,6.81101185,182.49,182.47,3.61895894]
[1755572198665,2.9,182.49,182.47,3.61895894]
[1755572198967,3.91096438,182.48,182.44,3.92895894]
[1755572199160,2.9,182.52,182.41,3.61895894]
[1755572199467,2.9,182.5,182.41,3.61895894]
[1755572199656,2.9,182.48,182.41,3.61895894]
[1755572199856,3.91088604,182.47,182.41,3.61895894]
[1755572201261,3.91088604,182.46,182.41,3.92895894]
[1755572201466,3.91088604,182.45,182.41,3.92895894]
[1755572201867,6.81088604,182.45,182.41,3.92895894]
[1755572202164,2.9,182.45,182.41,3.92895894]
[1755572202872,2.9,182.51,182.42,0.31]
[1755572203066,2.9,182.49,182.42,0.31]
[1755572203376,3.91459971,182.48,182.42,0.31]
[1755572203560,2.9,182.46,182.42,0.31]
[1755572203760,3.91459971,182.45,182.42,0.31]
[1755572204363,2.9,182.44,182.41,3.61895894]
[1755572204568,2.9,182.49,182.38,122.15114849]
[1755572204771,6.51895894,182.47,182.36,0.31]
[1755572204972,2.9,182.45,182.36,0.31]
[1755572205265,3.91578503,182.44,182.36,0.31]
[1755572205467,3.91578503,182.43,182.36,0.31]
[1755572205664,2.9,182.43,182.36,0.31]
[1755572206269,3.9125429,182.42,182.36,0.31]
[1755572206469,2.9,182.43,182.36,0.31]
[1755572206768,3.91280474,182.42,182.36,0.31]
[1755572206969,2.9,182.43,182.36,0.31]
[1755572207157,2.9,182.41,182.33,0.31]
[1755572207658,3.91219735,182.4,182.33,0.31]
[1755572207867,3.91219735,182.39,182.33,0.31]
[1755572208072,2.9,182.37,182.3,0.31]
[1755572212873,3.03,182.4,182.32,0.31]
[1755572213078,3.89766535,182.39,182.32,0.31]
[1755572213277,3.03,182.4,182.32,0.31]
[1755572213571,3.89571141,182.39,182.32,0.31]
[1755572213778,3.03,182.38,182.32,0.31]
[1755572215276,3.03,182.38,182.32,5.7923]
[1755572215577,3.03,182.38,182.32,0.31]
[1755572218383,6.64895894,182.43,182.32,0.31]
[1755572218580,3.03,182.41,182.33,5.4818]
[1755572218969,3.03,182.41,182.32,0.31]
[1755572223979,3.03,182.41,182.31,3.61895894]
[1755572224387,3.03,182.39,182.29,0.31]
[1755572226289,3.61895894,182.37,182.26,3.92895894]
[1755572226487,3.03,182.36,182.26,0.31]
[1755572228584,3.03,182.36,182.26,3.92895894]
[1755572229893,3.03,182.36,182.26,0.31]
[1755572231297,3.03,182.36,182.26,5.7939]
[1755572231483,3.03,182.36,182.29,0.31]
[1755572233188,3.03,182.36,182.29,5.7931]
[1755572233402,3.03,182.36,182.29,0.31]
[1755572234906,3.03,182.42,182.29,0.31]
[1755572235107,3.03,182.4,182.29,5.4831]
[1755572235303,3.86731762,182.39,182.3,0.31]
[1755572235500,3.03,182.4,182.3,0.31]
[1755572235699,3.03,182.4,182.32,0.31]
[1755572237204,3.03,182.4,182.34,3.61895894]
[1755572237401,3.03,182.4,182.35,0.31]
[1755572237602,3.03,182.4,182.34,3.92895894]
[1755572238913,3.03,182.4,182.34,9.41065894]
[1755572240508,3.03,182.4,182.34,3.92895894]
[1755572240900,3.03,182.4,182.34,3.61895894]
[1755572241104,3.87623706,182.39,182.28,3.92895894]
[1755572241417,3.03,182.37,182.28,3.92895894]
[1755572241907,3.03,182.35,182.25,3.61895894]
[1755572242308,3.06,182.33,182.25,3.61895894]
[1755572243107,3.06,182.33,182.26,0.31]
[1755572243814,0.954798,182.36,182.27,5.4835]
[1755572244013,3.88120934,182.35,182.27,5.4835]
[1755572244210,3.88120934,182.34,182.27,5.4835]
[1755572244411,3.06,182.35,182.27,5.4835]
[1755572244610,3.88288812,182.34,182.27,5.4835]
[1755572244812,3.06,182.35,182.27,5.4835]
[1755572245007,3.8841309,182.34,182.27,5.4835]
[1755572245209,3.88631878,182.33,182.27,5.4835]
[1755572245408,3.06,182.35,182.27,5.4835]
[1755572245612,3.88603919,182.34,182.27,5.4835]
[1755572245805,3.06,182.35,182.27,5.4835]
[1755572246010,3.88603247,182.34,182.26,5.794]
[1755572246210,3.06,182.35,182.26,5.794]
[1755572246410,3.06,182.33,182.26,0.31]
[1755572246625,3.06,182.33,182.25,3.61895894]
[1755572247420,3.88912571,182.32,182.25,3.61895894]
[1755572247623,3.06,182.33,182.25,3.61895894]
[1755572247921,3.88913352,182.32,182.25,3.61895894]
[1755572248216,3.06,182.33,182.25,9.10325894]
[1755572248416,3.89124145,182.32,182.25,9.10325894]
[1755572248618,3.06,182.33,182.25,9.10325894]
[1755572248817,3.8914396,182.32,182.25,9.10325894]
[1755572249018,3.06,182.33,182.25,9.10325894]
[1755572249216,3.89057345,182.32,182.25,9.10325894]
[1755572249417,3.06,182.33,182.25,9.10325894]
[1755572249621,3.89270554,182.32,182.25,9.10325894]
[1755572249820,3.06,182.33,182.26,0.31]
[1755572250020,3.89297758,182.32,182.26,0.31]
[1755572250222,3.06,182.33,182.26,0.31]
[1755572250421,3.89482741,182.32,182.26,5.794]
[1755572250620,3.89482741,182.31,182.25,3.61895894]
[1755572250827,3.06,182.29,182.25,3.61895894]
[1755572251015,3.06,182.28,182.25,3.61895894]
[1755572251512,3.06,182.28,182.25,3.92895894]
[1755572252117,3.06,182.28,182.25,3.61895894]
[1755572252316,3.06,182.28,182.22,9.41415894]
[1755572258027,3.06,182.28,182.23,5.4849]
[1755572258221,3.06,182.28,182.24,0.31]
[1755572259522,3.06,182.33,182.19,368.26]
[1755572259729,3.61895894,182.31,182.18,3.61895894]
[1755572259934,3.06,182.29,182.2,5.4857]
[1755572260132,3.06,182.27,182.2,5.4857]
[1755572262725,3.06,182.27,182.21,5.4856]
[1755572263733,3.06,182.27,182.19,0.31]
[1755572265529,3.06,182.27,182.19,5.796]
[1755572266231,3.06,182.27,182.2,5.4858]
[1755572266532,3.06,182.27,182.18,3.61895894]
[1755572266533,3.06,182.27,182.21,0.31]
[1755572266934,3.06,182.27,182.21,5.7956]
[1755572268839,3.06,182.27,182.21,0.31]
[1755572269533,3.06,182.27,182.18,9.41535894]
[1755572270341,3.06,182.27,182.19,5.4862]
[1755572271138,3.06,182.27,182.18,3.92895894]
[1755572271346,3.06,182.27,182.18,0.31]
[1755572271539,3.06,182.25,182.15,3.92895894]
[1755572271841,3.06,182.25,182.15,9.41635894]
[1755572272850,3.06,182.25,182.16,5.4871]
[1755572273038,3.06,182.25,182.15,3.92895894]
[1755572273541,3.06,182.25,182.15,9.41615894]
[1755572274453,3.06,182.25,182.16,0.31]
[1755572275448,3.06,182.25,182.17,5.4865]
[1755572276046,3.06,182.25,182.18,0.31]
[1755572277446,3.06,182.25,182.18,5.7965]
[1755572278149,3.06,182.25,182.11,0.31]
[1755572278336,2.95,182.23,182.12,0.31]
[1755572279144,2.95,182.23,182.13,5.4879]
[1755572279545,6.56895894,182.23,182.12,0.31]
[1755572279746,2.95,182.22,182.12,0.31]
[1755572279945,3.88242987,182.22,182.12,0.31]
[1755572280138,2.95,182.21,182.12,0.31]
[1755572280750,2.95,182.21,182.12,5.7983]
[1755572280953,2.95,182.21,182.12,0.31]
[1755572281846,2.95,182.19,182.08,0.31]
[1755572282740,2.95,182.16,182.03,3.92895894]
[1755572282943,3.88028146,182.15,182.04,0.31]
[1755572283147,2.95,182.14,182.04,0.31]
[1755572283742,3.61895894,182.14,182.04,0.31]
[1755572284050,2.95,182.13,182.04,0.31]
[1755572285240,2.95,182.13,182.0,9.42085894]
[1755572285445,2.95,182.1,182.0,0.31]
[1755572287252,2.95,182.07,181.97,3.61895894]
[1755572287448,2.95,182.07,181.98,0.31]
[1755572287648,124.0,182.19,182.0,3.61895894]
[1755572287649,2.95,182.1,182.0,3.61895894]
[1755572287849,2.95,182.1,182.01,0.31]
[1755572288350,2.95,182.1,182.01,3.92895894]
[1755572289056,2.95,182.1,182.01,9.42035894]
[1755572289257,2.95,182.1,182.01,3.92895894]
[1755572289666,2.95,182.1,182.01,9.42035894]
[1755572289850,2.95,182.1,182.01,3.92895894]
[1755572290051,2.95,182.1,182.02,0.31]
[1755572290246,2.95,182.1,182.02,5.8013]
[1755572290660,2.95,182.16,182.05,0.31]
[1755572290857,2.95,182.16,182.1,3.61895894]
[1755572291054,368.76,182.2,182.13,3.61895894]
[1755572291255,371.71,182.2,182.13,3.61895894]
[1755572291763,371.71,182.2,182.16,0.31]
[1755572291764,2.95,182.2,182.16,0.31]
[1755572292063,2.95,182.24,182.14,3.92895894]
[1755572292253,2.95,182.22,182.11,3.92895894]
[1755572292455,6.56895894,182.2,182.08,3.61895894]
[1755572292666,2.95,182.19,182.08,3.61895894]